Cogmind - Beta 15 @@@ ROGUE MODE // 2025.06.01 @ 15:42:35 Player: Man of Plasma Result: Self-destructed Performance ------------- Evolutions (0) 0 Regions Visited (4) 800 Robots Destroyed (6) 30 Value Destroyed (120) 120 Prototype IDs (2) 40 Alien Tech Used (0) 0 Bonus (-41) -41 TOTAL SCORE: 949 Bonus ------- Friendly Fire -41 Cogmind --------- Core Integrity 195/250 Matter 242/300 Energy 100/100 System Corruption 0% Temperature Cool (0) Movement Treading (160) Location -9/Mines Parts ------- > --- POWER (1) -------- (None) > --- PROPULSION (2) --- Light Treads Light Treads > --- UTILITY (2) ------ Small Storage Unit Signal Interpreter > --- WEAPON (2) ------- Assault Rifle > --- INVENTORY (8) ---- Ion Engine Heat Sink Compact Battery (200) Improved Propulsion Shielding Improved Light Armor Plating Hacking Suite Medium Laser Small Laser Peak State ------------ > --- POWER ------------ Ion Engine > --- PROPULSION ------- Light Treads Light Treads > --- UTILITY ---------- Small Storage Unit Signal Interpreter > --- WEAPON ----------- Assault Rifle Rocket Launcher > --- INVENTORY -------- Ion Engine Heat Sink Compact Battery Improved Propulsion Shielding Improved Light Armor Plating Hacking Suite Medium Laser Small Laser [Rating: 9] Favorites ----------- Power Ion Engine Engine Ion Engine Propulsion Light Treads Treads Light Treads Utility Small Storage Unit Device Heat Sink Storage Small Storage Unit Processor Signal Interpreter Weapon Assault Rifle Energy Gun Medium Laser Ballistic Gun Assault Rifle Launcher Rocket Launcher Build | -11 -10 -10 -10 -9 ------- Run | Yrd Mat Min Exi Min Slots Evolved . | . . . . . Power . | . . . . . Propulsion . | . . . . . Utility . | . . . . . Weapon . | . . . . . Parts Attached 9 | 6 2 . . 1 Power 1 | 1 . . . . Engine 1 | 1 . . . . Core . | . . . . . Reactor . | . . . . . Propulsion 2 | 2 . . . . Treads 2 | 2 . . . . Leg . | . . . . . Wheel . | . . . . . Hover . | . . . . . Flight . | . . . . . Utility 3 | 1 2 . . . Device 1 | . 1 . . . Storage 1 | 1 . . . . Processor 1 | . 1 . . . Hackware . | . . . . . Protection . | . . . . . Artifact . | . . . . . Weapon 3 | 2 . . . 1 Energy Gun 1 | 1 . . . . Energy Cannon . | . . . . . Ballistic Gun 1 | 1 . . . . Ballistic Cannon . | . . . . . Launcher 1 | . . . . 1 Special Weapon . | . . . . . Impact Weapon . | . . . . . Slashing Weapon . | . . . . . Piercing Weapon . | . . . . . Special Melee Weapon . | . . . . . Unidentified Prototypes . | . . . . . Parts Lost 2 | . . . . 2 Power 1 | . . . . 1 Propulsion . | . . . . . Utility . | . . . . . Weapon 1 | . . . . 1 Highest Loss Streak 2 | . . . . 2 To Critical Strikes . | . . . . . Average Backups 6 | 1 4 6 8 8 Power . | . 1 1 1 1 Propulsion . | . . . . . Utility 3 | . 1 3 5 5 Weapon 1 | . 1 2 2 2 Tool/Special . | . . . . . Unused Backups 7 | . . . . 7 Power 1 | . . . . 1 Propulsion . | . . . . . Utility 4 | . . . . 4 Weapon 2 | . . . . 2 Tool/Special . | . . . . . Average Slot Usage (%) 99 | . 99 100 100 97 Engine 13 | . 14 14 14 12 Treads 28 | . 28 28 28 28 Device 2 | . 7 . . . Storage 14 | . 14 14 14 14 Processor 11 | . 6 14 14 14 Energy Gun 13 | . 14 14 14 8 Ballistic Gun 14 | . 14 14 14 14 Peak Build Rating 9 | 6 8 8 8 9 Average Rating 7 | 5 7 8 8 8 On Entrance 6 | . 6 8 8 8 Naked Turns . | . . . . . Heaviest Build 16 | 14 15 14 14 16 Greatest Support 40 | 40 40 40 40 40 Greatest Overweight (x) 3 | 3 . . . . Average Overweight (x) . | . . . . . Largest Inventory Capacity 8 | 8 8 8 8 8 Average Capacity 7 | 7 8 8 8 8 Most Carried 8 | 2 6 8 8 8 Average Carried 6 | 1 4 6 8 7 Final Capacity 8 | 8 8 8 8 8 Final Carried 8 | 2 6 8 8 8 Class Distribution -------------------- 100% | Mutant Dominant Class ---------------- Mutant | -10/Materials Mutant | -10/Mines Mutant | -10/Exiles Mutant | -9/Mines Resources | -11 -10 -10 -10 -9 ----------- Run | Yrd Mat Min Exi Min Matter Collected 335 | 260 63 . . 12 Remotely . | . . . . . Salvage Created 201 | . 201 . . . Parts 7 | . 7 . . . Haulers Intercepted . | . . . . . Recyclers Shooed . | . . . . . Parts Field Recycled . | . . . . . Retrieved Matter . | . . . . . Parts Self-Destructed . | . . . . . Prevented . | . . . . . Kills | -11 -10 -10 -10 -9 ------- Run | Yrd Mat Min Exi Min Combat Hostiles Destroyed 3 | . 2 . . 1 Guns 2 | . 2 . . . AOE 1 | . . . . 1 Classes Destroyed 6 | . 5 . . 1 Worker 1 | . 1 . . . Recycler 1 | . 1 . . . Operator 1 | . 1 . . . Watcher 1 | . 1 . . . Grunt 2 | . 2 . . . Assembled 1 | . . . . 1 Best Kill Streak 3 | . 3 . . 1 Combat Bots Only 2 | . 2 . . 1 Max Kills in Single Turn 1 | . 1 . . 1 Gunslinging . | . . . . . Exploded 1 | . . . . 1 Melee . | . . . . . Uniques/NPCs Destroyed . | . . . . . Combat | -11 -10 -10 -10 -9 -------- Run | Yrd Mat Min Exi Min Hostile Shots Fired 34 | . 19 . . 15 Missed 8 | . 2 . . 6 Hits 26 | . 17 . . 9 Melee 3 | . . . . 3 Projectile 23 | . 17 . . 6 Critical Strikes 2 | . 2 . . . Damage Taken 456 | . 231 3 . 222 Core 55 | . 53 2 . . Absorbed by Shields . | . . . . . Core Remaining (%) 100 | 100 . . . . Volleys Fired 24 | . 19 . . 5 Largest 2 | . 2 . . 2 Hottest 70 | . 70 . . 53 Shots Fired 45 | . 35 . . 10 Gun 40 | . 35 . . 5 Cannon . | . . . . . Launcher 5 | . . . . 5 Special . | . . . . . Kinetic 21 | . 16 . . 5 Thermal 19 | . 19 . . . Explosive 5 | . . . . 5 Electromagnetic . | . . . . . Robot Hit Streak 8 | . 8 . . 1 Robot Miss Streak 2 | . 2 . . 1 Penetration Max . | . . . . . Secondary Targets . | . . . . . Shots Hit Robots 26 | . 23 . . 3 Core Hits 14 | . 10 . . 4 Critical Kills . | . . . . . Critical Parts Destroyed . | . . . . . Critical Strikes 2 | . 2 . . . Burn 2 | . 2 . . . Melee Attacks . | . . . . . Impact . | . . . . . Slashing . | . . . . . Piercing . | . . . . . Sneak Attacks . | . . . . . Combat Hostiles . | . . . . . Follow-up Attacks . | . . . . . Damage Inflicted 511 | . 330 . . 181 Guns 360 | . 327 . . 33 Cannons . | . . . . . Explosions 148 | . . . . 148 Melee . | . . . . . Ramming 3 | . 3 . . . Kinetic 148 | . 115 . . 33 Thermal 212 | . 212 . . . Explosive 148 | . . . . 148 Electromagnetic . | . . . . . Impact . | . . . . . Slashing . | . . . . . Piercing . | . . . . . Highest Corruption . | . . . . . Average Corruption . | . . . . . Corruption Purged . | . . . . . Corruption Blocked . | . . . . . Overload Shots . | . . . . . Overflow Damage . | . . . . . Projectiles . | . . . . . Explosions . | . . . . . Melee . | . . . . . Knockbacks . | . . . . . Impact . | . . . . . Kinetic . | . . . . . Secondary . | . . . . . Self-Inflicted Damage 38 | . . . . 38 Shots 1 | . . . . 1 Rammed 1 | . 1 . . . Targets Rammed 1 | . 1 . . . Kicked . | . . . . . Crushed . | . . . . . Highest Temperature 237 | . 237 . . . Average Temperature 134 | . 134 . . . Received Heat Transfer 159 | . 159 . . . Effects 2 | . 2 . . . Energy Bleed 1 | . 1 . . . Interference 1 | . 1 . . . Siege Activations . | . . . . . Martial Activations . | . . . . . Shielding Activations . | . . . . . Robots Disrupted . | . . . . . Combat Hostiles . | . . . . . Robots Corrupted . | . . . . . Combat Hostiles . | . . . . . Parts Fried . | . . . . . Impact Corruptions . | . . . . . Robots Melted . | . . . . . Combat Hostiles . | . . . . . Parts Melted 1 | . 1 . . . Heat Transferred 777 | . 777 . . . Parts Sabotaged . | . . . . . Parts Stolen . | . . . . . Parts Stripped . | . . . . . Power Chain Reactions . | . . . . . Alert | -11 -10 -10 -10 -9 ------- Run | Yrd Mat Min Exi Min Maximum Alert Level . | . . . . . Low Security (%) 100 | 100 100 100 . 100 Level 1 . | . . . . . Level 2 . | . . . . . Level 3 . | . . . . . Level 4 . | . . . . . Level 5 . | . . . . . High Security . | . . . . . Max Security . | . . . . . Peak Influence 50 | . 50 15 . 21 Initial 15 | . . 15 . . Average 2 | . 3 1 . 5 Influence Increases 114 | . 84 . . 30 Destroy 0b10 Robot/C 40 | . 40 . . . Destroy 0b10 Robot/NC 20 | . 20 . . . Destroy Leader 12 | . 12 . . . Successful Hack 12 | . 12 . . . Destroy Structure 30 | . . . . 30 Influence Decreases 114 | . 45 39 . 30 Entered New Map 24 | . . 24 . . Time Decay 80 | . 45 15 . 20 Lost Part 10 | . . . . 10 Squads Dispatched . | . . . . . Investigation . | . . . . . Extermination . | . . . . . Reinforcement . | . . . . . Assault . | . . . . . Garrison . | . . . . . Intercept . | . . . . . Searches Triggered . | . . . . . Construction Impeded . | . . . . . Haulers Reinforced . | . . . . . Active Scanning Responses . | . . . . . Cargo Convoy Interrupts . | . . . . . Stealth | -11 -10 -10 -10 -9 --------- Run | Yrd Mat Min Exi Min Distress Signals . | . . . . . Communications Jammed . | . . . . . Distress Signals . | . . . . . Times Spotted 18 | . 9 . . 9 Peak Tracking Total 9 | . 4 . . 9 Tactical Retreats . | . . . . . Traps | -11 -10 -10 -10 -9 ------- Run | Yrd Mat Min Exi Min Traps Triggered . | . . . . . Indirectly . | . . . . . Trap Hack Attempts . | . . . . . Triggered . | . . . . . Disarmed . | . . . . . Reprogrammed 6 | . 6 . . . Reused . | . . . . . Traps Extracted . | . . . . . Installed . | . . . . . Triggered . | . . . . . Machines | -11 -10 -10 -10 -9 ---------- Run | Yrd Mat Min Exi Min Machines Disabled . | . . . . . Max in Single Turn . | . . . . . Machines Repaired . | . . . . . Machines Dismantled . | . . . . . Machines Sabotaged . | . . . . . Overloaded Fab Kills . | . . . . . Hacking | -11 -10 -10 -10 -9 --------- Run | Yrd Mat Min Exi Min Machines Accessed 4 | . 2 1 1 . Terminals 2 | . 2 . . . Fabricators . | . . . . . Repair Stations . | . . . . . Recycling Units . | . . . . . Scanalyzers . | . . . . . Garrison Access . | . . . . . Total Hacks 12 | . 10 1 1 . Successful 8 | . 6 1 1 . Failed 4 | . 4 . . . Catastrophic . | . . . . . Database Lockouts . | . . . . . Manual 6 | . 6 . . . Terminals 10 | . 10 . . . Fabricators . | . . . . . Repair Stations . | . . . . . Recycling Units . | . . . . . Scanalyzers . | . . . . . Garrison Access . | . . . . . Terminal Hacks 6 | . 4 1 1 . Record 2 | . 1 . 1 . Prototype ID Bank 1 | . 1 . . . Open Door 1 | . . 1 . . Reprogram Traps 1 | . 1 . . . Zone Layout 1 | . 1 . . . Fabricator Hacks . | . . . . . Repair Station Hacks . | . . . . . Recycling Unit Hacks . | . . . . . Scanalyzer . | . . . . . Garrison Access Hacks . | . . . . . Unauthorized Hacks 2 | . 2 . . . Terminals 2 | . 2 . . . Botnet 2 | . 2 . . . Fabricators . | . . . . . Repair Stations . | . . . . . Recycling Units . | . . . . . Scanalyzers . | . . . . . Garrison Access . | . . . . . Data Cores Recovered 1 | . 1 . . . Used 1 | . 1 . . . Hacking Detections 2 | . 2 . . . Full Trace Events 1 | . 1 . . . Feedback Events . | . . . . . Feedback Blocked . | . . . . . Robot Schematics Acquired . | . . . . . Robots Built . | . . . . . Authchips . | . . . . . Time . | . . . . . Total Robot Build Rating . | . . . . . Part Schematics Acquired . | . . . . . Parts Built . | . . . . . Authchips . | . . . . . Time . | . . . . . Total Part Build Rating . | . . . . . Parts Repaired . | . . . . . Time . | . . . . . Parts Recycled . | . . . . . Recycled Matter . | . . . . . Retrieved Matter . | . . . . . Retrieved Components . | . . . . . Parts Scanalyzed . | . . . . . Part Schematics Acquired . | . . . . . Parts Damaged . | . . . . . Bothacking | -11 -10 -10 -10 -9 ------------ Run | Yrd Mat Min Exi Min Used RIF Installer . | . . . . . Robots Hacked . | . . . . . Non-combat . | . . . . . Combat . | . . . . . Robot Hacks Applied . | . . . . . Relay Couplers Released . | . . . . . Fabnet Peak Effective % . | . . . . . Robots Rewired . | . . . . . Allies Hacked . | . . . . . Hacks Repelled . | . . . . . Allies | -11 -10 -10 -10 -9 -------- Run | Yrd Mat Min Exi Min Total Allies . | . . . . . Largest Group . | . . . . . Highest-Rated Group . | . . . . . Highest-Rated Ally . | . . . . . Total Orders . | . . . . . Ally Attacks . | . . . . . Total Damage . | . . . . . Kills . | . . . . . Allies Corrupted . | . . . . . Allies Melted . | . . . . . Intel | -11 -10 -10 -10 -9 ------- Run | Yrd Mat Min Exi Min Active Infowar (turns) . | . . . . . Robot Analysis Total . | . . . . . Derelict Logs Recovered 1 | . . 1 . . Drone Launches . | . . . . . Drone Recoveries . | . . . . . Exploration | -11 -10 -10 -10 -9 ------------- Run | Yrd Mat Min Exi Min Turns Passed 1519 | 76 552 264 543 84 Spaces Moved 829 | 43 301 108 339 38 Core 6 | 6 . . . . Treads 823 | 37 301 108 339 38 Legs . | . . . . . Wheels . | . . . . . Hover . | . . . . . Flight . | . . . . . Fastest Speed 50 | 50 160 160 160 160 Average Speed 159 | 152 160 160 160 160 Slowest Speed 200 | 200 160 160 160 160 Overloaded Moves . | . . . . . Propulsion Burnouts . | . . . . . Robots Hopped . | . . . . . Potential Cave-ins . | . . . . . Cave-ins Triggered . | . . . . . Exploration Rate (%) 31 | 4 50 21 63 18 Regions Visited 4 Branch Regions 3 Pre-discovered Areas . | . . . . . Known Exits Taken 3 | . 1 1 1 . Unknown Exits Taken 1 | 1 . . . . Scrap Searched 1 | . . . . 1 Spaces Dug 11 | . . . . 11 Terrain Destroyed 47 | . . . . 47 Melee . | . . . . . Projectile . | . . . . . AOE 47 | . . . . 47 Terrain Rammed . | . . . . . Walls Destroyed . | . . . . . Machines Disabled . | . . . . . Actions | -11 -10 -10 -10 -9 --------- Run | Yrd Mat Min Exi Min Total 976 | 50 335 200 340 51 Wait 105 | . 9 89 2 5 Move 825 | 42 300 107 338 38 Hop . | . . . . . Pick Up 10 | 2 4 3 . 1 Fast Attach 7 | 6 1 . . . Attach . | . . . . . Detach . | . . . . . Swap 2 | . 1 . . 1 Drop 2 | . . 1 . 1 Fire 24 | . 19 . . 5 Melee . | . . . . . Ram . | . . . . . Kick . | . . . . . Crush 1 | . 1 . . . Escape Stasis . | . . . . . Rewire . | . . . . . Trap . | . . . . . Miscellaneous . | . . . . . Route ------- -11/Scrapyard -10/Materials (discovered 3 exits: *Mat x2 / *Min) -10/Mines -10/Exiles (discovered 2 exits: *Min x2) -9/Mines History --------- Turn | Location | Event 19 | -11/Scrapyard | Discovered new exit (range 14) 77 | -11/Scrapyard | Entered Materials 231 | -10/Materials | Discovered new exit (range 16) 269 | -10/Materials | Discovered new exit (range 14) 309 | -10/Materials | Build established: Mutant 475 | -10/Materials | Identified exit to Materials 525 | -10/Materials | Identified exit to Mines 551 | -10/Materials | Discovered exit to Materials (range 15) 629 | -10/Materials | Entered Mines 642 | -10/Mines | Learned Materials trap positions 659 | -10/Mines | Met a Derelict who couldn't figure out how to use a Trap Extractor 885 | -10/Mines | Deemed a non-threat by the Exiles lab entrance 887 | -10/Mines | Discovered new exit (range 5) 892 | -10/Mines | Identified exit to Exiles 893 | -10/Mines | Entered Exiles 893 | -10/Exiles | Found Exiles lab abandoned 1233 | -10/Exiles | Discovered new exit (range 10) 1246 | -10/Exiles | Identified exit to Mines 1419 | -10/Exiles | Discovered exit to Mines (range 14) 1436 | -10/Exiles | Entered Mines 1476 | -9/Mines | Assembled infested the area 1481 | -9/Mines | Assisted by a Guerilla fighting off Assembled 1520 | -9/Mines | Self-destructed Last Messages --------------- coming from, and they're closing on this area, come on!" 01484_ HV Slug penetrates as-09263. 01486_ as-09263 knocked back. 01486_ as-96168 destroyed. 01488_ as-14252 suffers critical hit (Destroy). 01488_ as-14252 knocked back. 01490_ as-09263 suffers critical hit (Destroy). 01490_ as-09263 knocked back. 01492_ as-09263 destroyed. 01492_ HV Slug penetrates as-14252. 01492_ as-14252 suffers critical hit (Destroy). 01492_ as-14252 destroyed. 01494_ The unstable cave ceiling collapses. 01500_ Acquired 4 matter. 01505_ Acquired 8 matter. 01507_ The unstable cave ceiling collapses. 01517_ Ion Engine destroyed. 01519_ The unstable cave ceiling collapses. 01519_ Rocket Launcher destroyed. Map ----- +----------------------------------------------------+ | ??????????????????????????????????? | | ??????????????????????????????????? | | ??????????????????????????????????? | | ??????????????????????????????????? | | ??????????????????????????????????? | | ??????????????????????????????????? | | ??????????????????????????????????? | | ?????????????????####?????????????? | | ????????????????# ?????????????? | | ????????????? ## #????????????? | | ????????????? # ????????????? | | ????????????? ????????????? | | ?????????????? #???????????? | | ??????????????? ???????????? | | ????????????????# ???????????? | | ?????????????????# #??????????? | | ????????????????## a ??????????? | | ????????????????# # #####?????? | | ????????????????# % #####?? | | ?????????????????# ##? | | ??????????????????# #? | | ??????????????????## #? | | ????????????????????## #? | | ?????????????????????## ##? | | ??????????????????????##aaa ####?? | | ??????????????????????# @a #????? | | ??????????????????????## #????? | | ???????????????????????## ###????? | | ????????????????????????# #??????? | | ????????????????????????#]%#??????? | | ????????????????????????# !#??????? | | ???????????????????????## ##?????? | | ???????????????????????# #?????? | | ???????????????????????# #?????? | | ??????????????????????## #?????? | | ????????????????####### #?????? | | ??????????????### #?????? | | ??????????????# ##????? | | ?????????????# #### ##???? | | ???????????? ???## ##??? | | ????????????? ?????# ##?? | | ?????????????? ??????# #?? | | ?????????????????????# #? | | ?????????????????????# #? | | ????????????????????# #? | | ?????????????????? #? | | ???????????????? #? | | ???????????????###### ## ##? | | ????????????????????# #?? ##?? | | ????????????????????# ??? ###??? | +----------------------------------------------------+ Best States ------------- Heat Dissipation 35 Energy Generation 10 Energy Capacity 250 Matter Stores 300 Matter Capacity 300 Sight Range 16 Terrain Scan Density 10 Evasion (%) 40 Recoil Reduction 2 Item Schematics ----------------- None Robot Schematics ------------------ None Fabricated ------------ Nothing Repaired ---------- Nothing Alien Tech Used ----------------- None Achievements -------------- Dynamic Key Challenges ------------ None Game ------ Seed CooledFrostMapper Manual? 0 Play Time 00:11:05 Cumulative 27.0 hours Start 2025.06.01 @ 15:32:35 End 2025.06.01 @ 15:42:35 Sessions 1 Manual Loads 0 Difficulty Rogue Special Mode None Game No. 46 Rogue 46 Adventurer 0 Explorer 0 Win Type - Total 0 Types 0/0/0/0/0/0/0/0/0/0 Lore% 35 Gallery% 30 Achievement% 26 Wizard Run 0 Options --------- Layout 1 ASCII 0 Keyboard 0 Movement Numpad Keybinds 0 Fullscreen 1 Font 24/Smallcaps Map View 50x35 Zoom Use 0% Tactical HUD 1 Map Filters NONE Filters NONE Steam 1 RUN: 79e2ba55-c0cb-4b25-b419-07ca2dee7241